bitfinex-derivatives/quotes_BTCF0:USTF0_20250910
["timestamp","ask_amount","ask_price","bid_price","bid_amount"]
[1757496721892,0.85151498,112430.0,112420.0,0.76032089]
[1757496722289,0.85151498,112430.0,112420.0,0.68782148]
[1757496724301,0.85151498,112430.0,112420.0,0.59378144]
[1757496724487,0.04327498,112430.0,112420.0,0.59378144]
[1757496724694,0.85139498,112430.0,112420.0,0.59378144]
[1757496727303,0.04327498,112430.0,112420.0,0.59378144]
[1757496727491,0.85135498,112430.0,112420.0,0.59378144]
[1757496727691,0.02053498,112430.0,112420.0,0.59378144]
[1757496727904,0.82861498,112430.0,112420.0,0.68784716]
[1757496728202,0.02053498,112430.0,112420.0,0.68784716]
[1757496729703,0.01953498,112430.0,112420.0,0.68884716]
[1757496729999,0.01953498,112430.0,112420.0,0.59478144]
[1757496730397,0.01953498,112430.0,112420.0,0.68884716]
[1757496732603,0.01953498,112430.0,112420.0,0.75946814]
[1757496733902,0.01953498,112430.0,112420.0,1.02856814]
[1757496734107,0.01953498,112430.0,112420.0,0.93450242]
[1757496735508,0.04206498,112430.0,112420.0,0.93450242]
[1757496742204,0.07036579,112430.0,112420.0,0.50308144]
[1757496742409,0.08990077,112430.0,112420.0,0.50308144]
[1757496743708,0.04206498,112430.0,112420.0,0.50308144]
[1757496744113,0.29206498,112430.0,112420.0,0.31495]
[1757496744312,0.29977498,112430.0,112420.0,0.40901572]
[1757496744706,0.29206498,112430.0,112420.0,0.40901572]
[1757496745703,0.29206498,112430.0,112420.0,0.13991572]
[1757496746206,0.29206498,112430.0,112420.0,0.23398144]
[1757496755134,0.65286498,112430.0,112420.0,0.23398144]
[1757496755633,0.65286498,112430.0,112420.0,0.13991572]
[1757496755829,0.65286498,112430.0,112420.0,0.13891572]
[1757496756034,0.65386498,112430.0,112420.0,0.23298144]
[1757496756336,0.65386498,112430.0,112420.0,0.13891572]
[1757496756639,0.40386498,112430.0,112420.0,0.13891572]
[1757496757732,0.5056407,112430.0,112420.0,0.0314]
[1757496758037,0.5056407,112430.0,112420.0,0.00889]
[1757496758225,0.41157498,112430.0,112420.0,0.03079]
[1757496759035,0.45941077,112430.0,112420.0,0.03079]
[1757496759435,0.45941077,112430.0,112420.0,0.12485572]
[1757496760139,0.41157498,112430.0,112420.0,0.12485572]
[1757496766942,0.5056407,112430.0,112420.0,0.12485572]
[1757496768134,1.3136407,112430.0,112420.0,0.10295572]
[1757496768443,1.3136407,112430.0,112420.0,0.00889]
[1757496768633,1.36147649,112430.0,112420.0,0.00889]
[1757496771449,1.61147649,112430.0,112420.0,0.00889]
[1757496771650,0.02887,112420.0,112410.0,0.0001]
[1757496771848,0.02856,112410.0,112400.0,0.12947572]
[1757496772149,1.21689498,112410.0,112400.0,0.12937572]
[1757496772652,1.21689498,112410.0,112400.0,0.02186]
[1757496772844,0.40889498,112410.0,112400.0,0.02186]
[1757496773045,1.21689498,112410.0,112400.0,0.12681572]
[1757496773652,1.26473077,112410.0,112400.0,0.12681572]
[1757496774345,1.21689498,112410.0,112400.0,0.12681572]
[1757496774543,1.21689498,112410.0,112400.0,0.12781572]
[1757496774848,1.22586593,112410.0,112400.0,0.12781572]
[1757496775050,1.22586593,112410.0,112400.0,0.12581572]
[1757496775650,1.22586593,112410.0,112400.0,0.12481572]
[1757496779045,1.29529052,112410.0,112400.0,0.12481572]
[1757496779854,1.29533052,112410.0,112400.0,0.12481572]
[1757496782056,0.48729052,112410.0,112400.0,0.12481572]
[1757496782254,1.29533052,112410.0,112400.0,0.12481572]
[1757496782551,1.29533052,112410.0,112400.0,0.59472958]
[1757496782552,0.40189498,112410.0,112400.0,0.59472958]
[1757496782745,0.84913498,112410.0,112400.0,0.59472958]
[1757496782949,0.84913498,112410.0,112400.0,0.50066386]
[1757496783550,0.84913498,112410.0,112400.0,0.86146386]
[1757496784054,0.01953498,112410.0,112400.0,0.86146386]
[1757496784253,0.67465498,112410.0,112400.0,0.95552958]
[1757496784453,0.80824,112420.0,112410.0,0.03572]
[1757496784650,0.80804,112420.0,112410.0,0.31789126]
[1757496787559,0.80804,112420.0,112410.0,0.32681262]
[1757496789258,0.38256,112430.0,112420.0,0.01386]
[1757496789456,1.19032,112430.0,112420.0,0.31789126]
[1757496789758,0.38236,112430.0,112420.0,0.31789126]
[1757496789959,0.82952,112430.0,112420.0,0.31789126]
[1757496790853,0.83052,112430.0,112420.0,0.31789126]
[1757496791761,0.82952,112430.0,112420.0,0.31789126]
[1757496795667,0.82948,112430.0,112420.0,0.31789126]
[1757496796367,0.84866268,112430.0,112420.0,0.31789126]
[1757496798753,0.84862268,112430.0,112420.0,0.45897689]
[1757496798959,0.84862268,112430.0,112420.0,0.31789126]
[1757496806566,0.84862268,112430.0,112420.0,0.32678126]
[1757496807368,0.04074268,112430.0,112420.0,0.32678126]
[1757496807576,0.84854268,112430.0,112420.0,0.32678126]
[1757496808073,0.82698268,112430.0,112420.0,0.46786689]
[1757496809077,0.82698268,112430.0,112420.0,0.82866689]
[1757496809265,0.84843268,112430.0,112420.0,0.82866689]
[1757496811179,0.84843268,112430.0,112420.0,0.68758126]
[1757496811880,0.84843268,112430.0,112420.0,0.82866689]
[1757496813181,0.84843268,112430.0,112420.0,0.68758126]
[1757496813376,0.84843268,112430.0,112420.0,0.82866689]
[1757496817681,0.84843268,112430.0,112420.0,0.68758126]
[1757496818183,0.84843268,112430.0,112420.0,0.82866689]
[1757496824487,0.84843268,112430.0,112420.0,0.89806414]
[1757496826284,0.40883579,112440.0,112430.0,0.01338]
[1757496826488,0.04808375,112450.0,112440.0,0.03444]
[1757496826686,1.21604451,112460.0,112450.0,0.03444]
[1757496826881,0.43080318,112460.0,112450.0,0.17552563]
[1757496827286,0.38291,112460.0,112450.0,0.17552563]
[1757496827988,0.38591,112460.0,112450.0,0.18441563]
[1757496829294,0.02511,112460.0,112450.0,0.18441563]
[1757496829587,0.02511,112460.0,112450.0,0.54521563]
[1757496831091,0.02511,112460.0,112450.0,0.68630126]
[1757496831292,0.003,112460.0,112450.0,1.07738689]
[1757496831487,0.81096,112470.0,112460.0,0.03444]
[1757496831690,0.81076,112470.0,112460.0,0.81849689]
[1757496832082,0.0002,112480.0,112460.0,1.06849689]
[1757496832287,0.83305,112480.0,112470.0,0.81849689]
[1757496832488,0.83295,112480.0,112470.0,0.67741126]
[1757496833497,0.83295,112480.0,112470.0,0.67941126]
[1757496833991,0.83295,112480.0,112470.0,0.68341126]
[1757496841098,0.83295,112480.0,112470.0,0.70131912]
[1757496842297,0.83295,112480.0,112470.0,0.84240475]
[1757496842496,0.20336227,112480.0,112470.0,1.11150475]
[1757496842802,0.20336227,112480.0,112470.0,1.92174475]
[1757496843402,0.20336227,112480.0,112470.0,1.91774475]
[1757496843702,0.0002,112490.0,112480.0,0.03444]
[1757496843897,0.83263,112500.0,112490.0,0.03444]
[1757496844096,0.81032,112500.0,112490.0,0.18444016]
[1757496844290,0.81032,112500.0,112490.0,0.54524016]
[1757496844599,0.81032,112500.0,112490.0,0.53632563]
[1757496844797,0.83243,112500.0,112490.0,0.53632563]
[1757496845196,0.83243,112500.0,112490.0,0.53832563]
[1757496845697,0.83243,112500.0,112490.0,0.54232563]
[1757496845898,0.83243,112500.0,112490.0,0.54032563]
[1757496846300,0.83243,112500.0,112490.0,0.58310224]
[1757496850788,0.81032,112500.0,112490.0,0.58310224]
[1757496850993,0.02266,112510.0,112500.0,0.03397]
[1757496851298,0.02246,112510.0,112500.0,0.22183224]
[1757496852498,0.02246,112510.0,112500.0,0.31576336]
[1757496853700,0.02246,112510.0,112500.0,0.38750729]
[1757496853899,0.02246,112510.0,112500.0,0.39638729]
[1757496854093,0.02246,112510.0,112500.0,0.30245617]
[1757496863609,0.07035318,112510.0,112500.0,0.30245617]
[1757496871110,0.02246,112510.0,112500.0,0.30245617]
[1757496872625,0.07031864,112510.0,112500.0,0.30245617]
[1757496873718,0.02246,112510.0,112500.0,0.30245617]
[1757496879720,0.47719112,112510.0,112500.0,0.04285]
[1757496879915,0.79859563,112510.0,112500.0,0.00888]
[1757496880828,0.73490112,112510.0,112500.0,0.00888]
[1757496881029,0.75398658,112510.0,112500.0,0.00888]
[1757496881229,0.81782551,112510.0,112500.0,0.00888]
[1757496881529,0.81782551,112510.0,112500.0,0.10281112]
[1757496882223,0.72389439,112510.0,112500.0,0.12418112]
[1757496882425,1.53173439,112510.0,112500.0,0.12418112]
[1757496882626,1.53173439,112510.0,112500.0,0.13697112]
[1757496883030,1.53173439,112510.0,112500.0,0.12418112]
[1757496883532,1.53173439,112510.0,112500.0,0.10281112]
[1757496883834,1.46789546,112510.0,112500.0,0.10281112]
[1757496884331,1.51574913,112510.0,112500.0,0.10281112]
[1757496886134,1.51574913,112510.0,112500.0,0.00888]
[1757496886735,1.51574913,112510.0,112500.0,0.10281112]
[1757496887440,0.70790913,112510.0,112500.0,0.10281112]
[1757496887630,1.51542913,112510.0,112500.0,0.12509112]
[1757496889738,0.70790913,112510.0,112500.0,0.12509112]
[1757496889940,1.51542913,112510.0,112500.0,0.12509112]
[1757496891834,0.70790913,112510.0,112500.0,0.13788112]
[1757496892041,1.51542913,112510.0,112500.0,0.13788112]
[1757496894340,1.50771913,112510.0,112500.0,0.13788112]
[1757496894848,1.50775913,112510.0,112500.0,0.13788112]
[1757496895144,1.50771913,112510.0,112500.0,0.13788112]
[1757496895646,1.50771913,112510.0,112500.0,0.23181224]
[1757496896338,1.50771913,112510.0,112500.0,0.13788112]
[1757496897148,1.50771913,112510.0,112500.0,0.23181224]
[1757496898346,0.45019913,112510.0,112500.0,0.23181224]
[1757496898545,1.25775913,112510.0,112500.0,0.23181224]
[1757496898946,0.45019913,112510.0,112500.0,0.04395]
[1757496899144,1.25771913,112510.0,112500.0,0.23181224]
[1757496899343,0.45019913,112510.0,112500.0,0.23181224]
[1757496899541,1.25771913,112510.0,112500.0,0.23181224]
[1757496900442,1.25771913,112510.0,112500.0,0.04395]
[1757496900643,1.25771913,112510.0,112500.0,0.23181224]
[1757496901144,0.45019913,112510.0,112500.0,0.23181224]
[1757496901335,1.25771913,112510.0,112500.0,0.23181224]
[1757496902846,0.45019913,112510.0,112500.0,0.23181224]
[1757496903246,1.25771913,112510.0,112500.0,0.23181224]
[1757496903452,0.45019913,112510.0,112500.0,0.23181224]
[1757496903642,1.25771913,112510.0,112500.0,0.23181224]
[1757496904343,1.26487913,112510.0,112500.0,0.10281112]
[1757496905949,1.26487913,112510.0,112500.0,0.12509112]
[1757496907853,1.26487913,112510.0,112500.0,0.00888]
[1757496907854,1.35881025,112510.0,112500.0,0.00888]
[1757496908052,1.29187112,112510.0,112500.0,0.00888]
[1757496908253,1.29187112,112510.0,112500.0,0.10281112]
[1757496908445,1.33887651,112510.0,112500.0,0.14981651]
[1757496910146,1.33887651,112510.0,112500.0,0.29075302]
[1757496911252,1.19794,112510.0,112500.0,0.29075302]
[1757496911447,1.19794,112510.0,112500.0,0.31303302]
[1757496911654,1.33887651,112510.0,112500.0,0.31303302]
[1757496912454,1.33887651,112510.0,112500.0,0.29075302]
[1757496912751,1.33887651,112510.0,112500.0,0.31282302]
[1757496914354,1.33887651,112510.0,112500.0,0.29075302]
[1757496917552,0.39042,112510.0,112500.0,0.31282302]
[1757496917757,1.33883651,112510.0,112500.0,0.31282302]
[1757496917962,1.1979,112510.0,112500.0,0.32651302]
[1757496918261,1.19074,112510.0,112500.0,0.32651302]
[1757496918449,1.33167651,112510.0,112500.0,0.32651302]
[1757496923262,0.52419651,112510.0,112500.0,0.32651302]
[1757496923456,1.33163651,112510.0,112500.0,0.32651302]
[1757496924161,0.52419651,112510.0,112500.0,0.32651302]
[1757496924354,1.33163651,112510.0,112500.0,0.32651302]
[1757496926465,0.52419651,112510.0,112500.0,0.32651302]
[1757496926656,1.33163651,112510.0,112500.0,0.32651302]
[1757496928060,1.19786,112510.0,112500.0,0.29075302]
[1757496928262,1.33879651,112510.0,112500.0,0.29075302]
[1757496928458,1.33879651,112510.0,112500.0,0.31282302]
[1757496929858,1.33879651,112510.0,112500.0,0.17188651]
[1757496930361,1.33879651,112510.0,112500.0,0.18557651]
[1757496930562,1.33163651,112510.0,112500.0,0.32651302]
[1757496932867,1.33163651,112510.0,112500.0,0.04464]
[1757496933057,1.33163651,112510.0,112500.0,0.32651302]
[1757496933766,0.38326,112510.0,112500.0,0.32651302]
[1757496933965,1.33159651,112510.0,112500.0,0.32651302]
[1757496934765,0.3608,112510.0,112500.0,0.71744953]
[1757496934966,0.8074,112510.0,112500.0,0.71744953]
[1757496935667,0.39110968,112520.0,112510.0,0.03576]
[1757496935870,1.19850968,112520.0,112510.0,0.31763302]
[1757496936065,1.19850968,112520.0,112510.0,0.17669651]
[1757496936970,1.19850968,112520.0,112510.0,0.18557651]
[1757496940171,1.33944619,112520.0,112510.0,0.18557651]
[1757496944368,1.19850968,112520.0,112510.0,0.18557651]
[1757496944568,1.33944619,112520.0,112510.0,0.18557651]
[1757496945476,0.39110968,112520.0,112510.0,0.18557651]
[1757496945676,1.19842968,112520.0,112510.0,0.18557651]
[1757496946378,1.33936619,112520.0,112510.0,0.18557651]
[1757496947280,0.53204619,112520.0,112510.0,0.18557651]
[1757496947476,1.33936619,112520.0,112510.0,0.18557651]
[1757496949685,1.19842968,112520.0,112510.0,0.18557651]
[1757496949983,1.33936619,112520.0,112510.0,0.18557651]
[1757496951482,1.33936619,112520.0,112510.0,0.04464]
[1757496951687,1.4880127,112520.0,112510.0,0.17188651]
[1757496952187,1.4880127,112520.0,112510.0,0.14981651]
[1757496952787,1.4880127,112520.0,112510.0,0.00888]
[1757496952986,1.4880127,112520.0,112510.0,0.14981651]
[1757496954987,0.39110968,112520.0,112510.0,0.18540651]
[1757496955287,1.34060619,112520.0,112510.0,0.04447]
[1757496955486,1.34060619,112520.0,112510.0,0.18540651]
[1757496957190,1.34060619,112520.0,112510.0,0.04447]
[1757496957389,1.34060619,112520.0,112510.0,0.18540651]
[1757496958392,1.34060619,112520.0,112510.0,0.03091]
[1757496958586,1.34060619,112520.0,112510.0,0.17184651]
[1757496958791,1.34060619,112520.0,112510.0,0.18540651]
[1757496959396,1.34060619,112520.0,112510.0,0.04447]
[1757496959589,1.34060619,112520.0,112510.0,0.18540651]
[1757496960488,1.4892527,112520.0,112510.0,0.00888]
[1757496960792,1.7392527,112520.0,112510.0,0.00888]
[1757496962195,0.9306927,112520.0,112510.0,0.00888]
[1757496962393,1.7410527,112520.0,112510.0,0.14981651]
[1757496962582,1.7410527,112520.0,112510.0,0.00888]
[1757496963895,1.7410527,112520.0,112510.0,0.14981651]
[1757496964697,1.7410527,112520.0,112510.0,0.00888]
[1757496964895,1.7410527,112520.0,112510.0,0.14981651]
[1757496965798,1.7410527,112520.0,112510.0,0.00888]
[1757496966288,1.7410527,112520.0,112510.0,0.14981651]
[1757496968386,1.55312706,112520.0,112510.0,0.00888]
[1757496969004,0.02767,112500.0,112490.0,0.0001]
[1757496969195,1.74784476,112500.0,112490.0,0.0001]
[1757496969700,0.02224,112470.0,112460.0,0.12953738]
[1757496969891,0.833,112470.0,112460.0,0.12953738]
[1757496970800,0.833,112470.0,112460.0,0.13253738]
[1757496971299,0.833,112470.0,112460.0,0.13053738]
[1757496971501,1.28774738,112470.0,112460.0,0.02303]
[1757496971699,1.28774738,112470.0,112460.0,0.001]
[1757496972202,1.1942,112470.0,112460.0,0.001]
[1757496972402,1.28814738,112470.0,112460.0,0.001]
[1757496972603,1.29700304,112470.0,112460.0,0.001]
[1757496973001,1.29700304,112470.0,112450.0,0.11639738]
[1757496973802,0.38195,112460.0,112450.0,0.13971738]
[1757496975595,1.19355,112460.0,112450.0,0.13971738]
[1757496977608,1.19355,112460.0,112450.0,0.04577]
[1757496977805,1.19355,112460.0,112450.0,0.13971738]
[1757496979508,0.38195,112460.0,112450.0,0.13971738]
[1757496979709,1.19359,112460.0,112450.0,0.13971738]
[1757496980509,1.19359,112460.0,112450.0,0.04577]
[1757496980809,0.38195,112460.0,112450.0,0.13971738]
[1757496981011,1.19351,112460.0,112450.0,0.13971738]
[1757496983411,1.28745738,112460.0,112450.0,0.13971738]
[1757496983614,1.29288738,112460.0,112450.0,0.10283738]
[1757496983803,1.29288738,112460.0,112450.0,0.03221]
[1757496984411,1.28745738,112460.0,112450.0,0.04587]
[1757496985510,0.38195,112460.0,112450.0,0.04587]
[1757496985706,1.19319,112460.0,112450.0,0.04587]
[1757496985907,1.19319,112460.0,112450.0,0.13981738]
[1757496987912,1.19319,112460.0,112450.0,0.04587]
[1757496988107,1.19319,112460.0,112450.0,0.13092738]
[1757496990410,1.28713738,112460.0,112450.0,0.13092738]
[1757496990615,1.28713738,112460.0,112440.0,0.11639738]
[1757496990917,0.47589738,112450.0,112440.0,0.04577]
[1757496991216,0.48360738,112450.0,112440.0,0.00889]
[1757496993007,0.48360738,112450.0,112440.0,0.03221]
[1757496997118,0.48360738,112450.0,112440.0,0.00889]
[1757496998512,1.29524738,112450.0,112440.0,0.00889]
[1757496998719,0.48360738,112450.0,112440.0,0.00889]
[1757496998915,1.29520738,112450.0,112440.0,0.00889]
[1757497003916,1.54520738,112450.0,112440.0,0.00889]
[1757497005225,1.54520738,112450.0,112430.0,0.10750738]
[1757497005415,0.45474738,112440.0,112430.0,0.12923738]
[1757497005612,0.47755738,112440.0,112430.0,0.12923738]
[1757497006517,1.28867738,112440.0,112430.0,0.13023738]
[1757497006732,1.28867738,112440.0,112430.0,0.13912738]
[1757497007717,1.28867738,112440.0,112430.0,0.03162]
[1757497008021,1.28867738,112440.0,112430.0,0.12556738]
[1757497008219,1.36846799,112440.0,112430.0,0.12556738]
[1757497008414,1.36846799,112440.0,112430.0,0.00989]
[1757497009922,1.36846799,112440.0,112430.0,0.00889]
[1757497011023,0.45579061,112440.0,112430.0,0.13829738]
[1757497011214,1.26675061,112440.0,112430.0,0.13829738]
[1757497012623,0.45579061,112440.0,112430.0,0.13829738]
[1757497012819,1.26675061,112440.0,112430.0,0.13829738]
[1757497014726,0.45579061,112440.0,112430.0,0.13829738]
[1757497014923,1.26647061,112440.0,112430.0,0.13829738]
[1757497016727,0.45579061,112440.0,112430.0,0.13829738]
[1757497016924,1.26647061,112440.0,112430.0,0.13829738]
[1757497017626,1.36041799,112440.0,112430.0,0.13829738]
[1757497018021,1.36013799,112440.0,112430.0,0.13829738]
[1757497018526,0.45579061,112440.0,112430.0,0.13829738]
[1757497018725,1.26619061,112440.0,112430.0,0.12940738]
[1757497019927,1.26619061,112440.0,112430.0,0.13829738]
[1757497020424,1.36013799,112440.0,112430.0,0.00889]
[1757497021926,1.26619061,112440.0,112430.0,0.00889]
[1757497022128,1.36013799,112440.0,112430.0,0.00889]
[1757497022527,1.26619061,112440.0,112430.0,0.00889]
[1757497022721,1.35985799,112440.0,112430.0,0.03062]
[1757497023530,1.35985799,112440.0,112430.0,0.12456738]
[1757497026430,1.35985799,112440.0,112430.0,0.10283738]
[1757497026630,1.35985799,112440.0,112430.0,0.00889]
[1757497027936,0.54973799,112440.0,112430.0,0.03062]
[1757497028231,1.35997799,112440.0,112430.0,0.12456738]
[1757497029932,0.54973799,112440.0,112430.0,0.12456738]
[1757497030133,1.35969799,112440.0,112430.0,0.12456738]
[1757497030334,1.40684616,112440.0,112430.0,0.17171555]
[1757497032735,1.40684616,112440.0,112430.0,0.14998555]
[1757497032936,1.26575061,112440.0,112430.0,0.17295555]
[1757497033137,1.40684616,112440.0,112430.0,0.14998555]
[1757497033431,1.54794171,112440.0,112430.0,0.00889]
[1757497033636,1.79794171,112440.0,112430.0,0.00889]
[1757497038036,1.79794171,112440.0,112410.0,0.15475555]
[1757497038235,0.52371555,112420.0,112410.0,0.17772555]
[1757497038438,1.33343555,112420.0,112410.0,0.17772555]
[1757497038833,1.34232056,112420.0,112410.0,0.17772555]
[1757497039536,1.34232056,112420.0,112410.0,0.17872555]
[1757497040331,0.98152056,112420.0,112410.0,0.17872555]
[1757497040539,0.52371555,112420.0,112410.0,0.17872555]
[1757497040734,1.33327555,112420.0,112410.0,0.17872555]
[1757497041538,1.34205976,112420.0,112410.0,0.17872555]
[1757497042737,1.34966976,112420.0,112410.0,0.14209555]
[1757497043238,1.20857421,112420.0,112410.0,0.14209555]
[1757497043432,1.49076531,112420.0,112410.0,0.14209555]
[1757497043634,1.49076531,112420.0,112410.0,0.001]
[1757497044248,1.85156531,112420.0,112410.0,0.001]
[1757497046045,1.56937421,112420.0,112410.0,0.001]
[1757497046351,1.85156531,112420.0,112410.0,0.001]
[1757497047346,1.04200531,112420.0,112410.0,0.001]
[1757497047546,1.85152531,112420.0,112410.0,0.001]
[1757497051552,1.85152531,112420.0,112410.0,0.14209555]
[1757497053557,1.04200531,112420.0,112410.0,0.14209555]
[1757497053854,1.85144531,112420.0,112410.0,0.14209555]
[1757497054054,1.85144531,112420.0,112410.0,0.001]
[1757497054655,1.12984531,112420.0,112410.0,0.001]
[1757497054853,1.85144531,112420.0,112410.0,0.001]
[1757497055154,1.04200531,112420.0,112410.0,0.001]
[1757497055355,1.85144531,112420.0,112410.0,0.14209555]
[1757497058456,0.75220421,112420.0,112410.0,0.16506555]
[1757497058654,1.55278,112420.0,112410.0,0.3188411]
[1757497058855,1.55278,112420.0,112410.0,0.17774555]
[1757497061160,0.74342,112420.0,112410.0,0.17774555]
[1757497061351,1.55278,112420.0,112410.0,0.17774555]
[1757497061552,1.19198,112420.0,112410.0,0.17774555]
[1757497063060,1.19198,112420.0,112410.0,0.3188411]
[1757497063456,1.19198,112420.0,112410.0,0.17774555]
[1757497063662,1.19198,112420.0,112410.0,0.3188411]
[1757497063855,0.38274,112430.0,112420.0,0.014]
[1757497064058,0.83118,112430.0,112420.0,0.3189911]
[1757497065859,1.33307555,112430.0,112420.0,0.17789555]
[1757497066259,1.33307555,112430.0,112410.0,0.15377555]
[1757497066458,0.83146,112430.0,112420.0,0.3189911]
[1757497066765,0.83146,112430.0,112420.0,0.3199911]
[1757497067264,0.83146,112430.0,112420.0,0.3189911]
[1757497067865,0.83146,112430.0,112420.0,0.0368]
[1757497068163,0.83146,112430.0,112420.0,0.3189911]
[1757497073774,0.02194,112430.0,112420.0,0.3189911]
[1757497073976,0.83126,112430.0,112420.0,0.3189911]
[1757497076472,0.80916,112430.0,112420.0,0.6797911]
[1757497076776,0.80916,112430.0,112420.0,0.9297911]
[1757497077177,0.80916,112430.0,112420.0,0.9307911]
[1757497077479,0.8311,112430.0,112420.0,0.9307911]
[1757497088383,0.97219555,112430.0,112420.0,0.0378]
[1757497088573,1.33299555,112430.0,112420.0,0.17889555]
[1757497090689,1.33299555,112430.0,112420.0,0.17789555]
[1757497092286,1.28598367,112430.0,112420.0,0.13088367]
[1757497092480,1.54369367,112430.0,112410.0,0.46756367]
[1757497092681,0.47679367,112420.0,112410.0,0.12936367]
[1757497092980,0.38271,112420.0,112410.0,0.12936367]
[1757497093675,0.47679367,112420.0,112410.0,0.12936367]
[1757497094386,0.47679367,112420.0,112410.0,0.13036367]
[1757497094587,0.38271,112420.0,112410.0,0.13036367]
[1757497097289,0.83063,112420.0,112410.0,0.13036367]
[1757497104892,0.02191,112420.0,112410.0,0.13036367]
[1757497105090,0.83063,112420.0,112410.0,0.13036367]
[1757497107091,0.02191,112420.0,112410.0,0.13036367]
[1757497107295,0.83063,112420.0,112410.0,0.13036367]
[1757497110497,0.02191,112420.0,112410.0,0.13036367]
[1757497110687,0.83063,112420.0,112410.0,0.13036367]
[1757497111594,0.02191,112420.0,112410.0,0.13036367]
[1757497111795,0.80872,112420.0,112410.0,0.13036367]
[1757497112190,0.83063,112420.0,112410.0,0.13036367]
[1757497114098,0.02191,112420.0,112410.0,0.13036367]
[1757497114299,0.83063,112420.0,112410.0,0.13036367]
[1757497114700,0.02191,112420.0,112410.0,0.13036367]
[1757497114896,0.44198515,112440.0,112410.0,0.83524734]
[1757497115100,0.46389515,112440.0,112430.0,0.13009367]
[1757497115300,1.36669882,112440.0,112430.0,0.13009367]
[1757497116004,1.36669882,112440.0,112430.0,0.03601]
[1757497116390,1.71849249,112440.0,112420.0,0.01341]
[1757497116591,0.47679367,112430.0,112420.0,0.03601]
[1757497119699,0.47679367,112430.0,112420.0,0.13009367]
[1757497130704,0.38271,112430.0,112420.0,0.13009367]
[1757497130906,1.19135,112430.0,112420.0,0.13009367]
[1757497132207,1.28543367,112430.0,112420.0,0.13009367]
[1757497140217,0.47679367,112430.0,112420.0,0.13009367]
[1757497140418,1.28543367,112430.0,112420.0,0.13009367]
[1757497142619,1.28543367,112430.0,112420.0,0.03601]
[1757497142921,1.28543367,112430.0,112420.0,0.13009367]
[1757497144723,1.28543367,112430.0,112420.0,0.03601]
[1757497144914,1.28543367,112430.0,112420.0,0.13009367]
[1757497145623,1.28543367,112430.0,112410.0,0.46756367]
[1757497145923,0.11571367,112420.0,112410.0,0.12913367]
[1757497146925,0.11571367,112420.0,112410.0,0.13013367]
[1757497148224,0.02163,112420.0,112410.0,0.13013367]
[1757497152326,0.1627576,112420.0,112410.0,0.1771776]
[1757497155727,0.02163,112420.0,112410.0,0.1771776]
[1757497156027,0.1627576,112420.0,112410.0,0.1771776]
[1757497162828,0.02163,112420.0,112410.0,0.1771776]
[1757497163025,0.9713176,112420.0,112410.0,0.1771776]
[1757497163225,0.83019,112420.0,112410.0,0.1771776]
[1757497164230,0.02163,112420.0,112410.0,0.1771776]
[1757497164434,0.83019,112420.0,112410.0,0.1771776]
[1757497164633,0.83019,112420.0,112410.0,0.3183052]
[1757497164837,0.83019,112420.0,112410.0,0.1771776]
[1757497192853,0.83019,112420.0,112410.0,0.3183052]
[1757497195557,0.83019,112420.0,112410.0,0.1771776]
[1757497199553,0.83019,112420.0,112410.0,0.03605]
[1757497199756,0.83019,112420.0,112410.0,0.1771776]
[1757497202357,0.02163,112420.0,112410.0,0.1771776]
[1757497202559,0.82995,112420.0,112410.0,0.1771776]
[1757497209164,0.02163,112420.0,112410.0,0.1771776]
[1757497209367,0.3608,112430.0,112410.0,0.9291052]
[1757497209671,0.38265,112430.0,112420.0,0.3172552]
[1757497209872,0.83013,112430.0,112420.0,0.6780552]
[1757497212877,0.83013,112430.0,112420.0,0.68676445]
[1757497214078,0.38256,112440.0,112430.0,0.03524]
[1757497214275,1.19076,112440.0,112430.0,0.12927527]
[1757497216078,0.43048444,112450.0,112430.0,0.22331054]
[1757497216382,0.45224444,112450.0,112440.0,0.22331054]
[1757497216583,1.26044444,112450.0,112440.0,0.12927527]
[1757497218581,1.35447971,112450.0,112440.0,0.02137]
[1757497218785,1.60447971,112450.0,112430.0,0.10790527]
[1757497218983,1.36347444,112450.0,112440.0,0.02137]
[1757497219688,1.26943917,112450.0,112440.0,0.03524]
[1757497220190,1.36347444,112450.0,112440.0,0.03524]
[1757497220381,1.36347444,112450.0,112440.0,0.12927527]
[1757497220688,1.36347444,112450.0,112440.0,0.09403527]
[1757497221189,1.36347444,112450.0,112430.0,0.10790527]
[1757497221786,1.36347444,112450.0,112440.0,0.02137]
[1757497222895,1.36347444,112450.0,112430.0,0.10890527]
[1757497223289,1.36347444,112450.0,112430.0,0.01487]
[1757497223489,1.36347444,112450.0,112430.0,0.10890527]
[1757497224090,1.36347444,112450.0,112440.0,0.02137]
[1757497225087,1.36347444,112450.0,112440.0,0.11540527]
[1757497232499,1.36347444,112450.0,112440.0,0.09403527]
[1757497235701,1.36347444,112450.0,112440.0,0.11540527]
[1757497235894,0.55527444,112450.0,112440.0,0.11540527]
[1757497236094,1.36323444,112450.0,112440.0,0.11540527]
[1757497236299,1.36323444,112450.0,112430.0,0.37467]
[1757497236599,1.36323444,112450.0,112440.0,0.11540527]
[1757497238102,1.35419971,112450.0,112440.0,0.11540527]
[1757497238289,1.35419971,112450.0,112440.0,0.12927527]
[1757497238493,1.26016444,112450.0,112440.0,0.12927527]
[1757497238694,1.35419971,112450.0,112440.0,0.12927527]
[1757497239703,1.26016444,112450.0,112440.0,0.12927527]
[1757497239895,0.45224444,112450.0,112440.0,0.12927527]
[1757497240096,1.26012444,112450.0,112440.0,0.12927527]
[1757497241406,1.26012444,112450.0,112440.0,0.03524]
[1757497241704,1.35415971,112450.0,112440.0,0.12927527]
[1757497243206,1.26012444,112450.0,112440.0,0.12927527]
[1757497244605,0.45224444,112450.0,112440.0,0.12927527]
[1757497244802,1.26012444,112450.0,112440.0,0.12927527]
[1757497249515,1.35415971,112450.0,112440.0,0.12927527]
[1757497250010,0.99335971,112450.0,112440.0,0.12927527]
[1757497250211,1.35415971,112450.0,112440.0,0.12927527]
[1757497250519,1.26012444,112450.0,112440.0,0.12927527]
[1757497254416,1.35415971,112450.0,112440.0,0.12927527]
[1757497255719,1.26012444,112450.0,112440.0,0.12927527]
[1757497256017,0.89932444,112450.0,112440.0,0.12927527]
[1757497256216,1.26012444,112450.0,112440.0,0.12927527]
[1757497258117,0.45224444,112450.0,112440.0,0.12927527]
[1757497258321,1.26008444,112450.0,112440.0,0.12927527]
[1757497263520,1.26008444,112450.0,112440.0,0.03524]
[1757497263721,1.26008444,112450.0,112440.0,0.12927527]
[1757497265528,1.35411971,112450.0,112430.0,0.10790527]
[1757497265719,0.47690527,112440.0,112430.0,0.03698]
[1757497265913,0.57865054,112440.0,112420.0,0.66141631]
[1757497266221,1.29227527,112430.0,112420.0,0.39465158]